Cogmind - Beta 13 @@@ ROGUE MODE // 2024.03.21 @ 21:17:43 Player: dylanbksp Result: Destroyed by S-10 Pest with Light Assault Rifle Performance ------------- Evolutions (2) 1000 Regions Visited (4) 800 Robots Destroyed (42) 210 Value Destroyed (1045) 1045 Prototype IDs (1) 20 Alien Tech Used (0) 0 Bonus (11) 11 TOTAL SCORE: 3086 Bonus ------- High Alert Combat Kills 11 Cogmind --------- Core Integrity 0/550 Matter 300/300 Energy 60/100 System Corruption 1% Temperature Cool (0) Movement Core (50) Location -8/Materials Parts ------- > --- POWER (2) -------- (None) > --- PROPULSION (2) --- (None) > --- UTILITY (4) ------ Targeting Computer Tractor Beam > --- WEAPON (3) ------- (None) > --- INVENTORY (5) ---- Cooling System Flak Cannon Peak State ------------ > --- POWER ------------ (None) > --- PROPULSION ------- Advanced Treads > --- UTILITY ---------- Large Storage Unit Targeting Computer Utility Shielding Hardened Medium Armor Plating > --- WEAPON ----------- Beam Rifle Improved Light Cannon Flak Cannon > --- INVENTORY -------- Cooling System Tractor Beam Heavy Laser Light Assault Rifle EMP Blaster [Rating: 17] Favorites ----------- Power Ion Engine Engine Ion Engine Propulsion Aluminum Leg Treads Advanced Treads Leg Aluminum Leg Wheel Compact Wheel Utility Utility Shielding Device Cooling System Storage Large Storage Unit Processor Targeting Computer Protection Utility Shielding Weapon Light Assault Rifle Energy Gun EM Pulse Gun Ballistic Gun Light Assault Rifle Ballistic Cannon Improved Light Cannon Launcher EMP Blaster Build | -11 -10 -9 -9 -8 ------- Run | Yrd Mat Mat Min Mat Slots Evolved 4 | . . 2 . 2 Power 1 | . . . . 1 Propulsion . | . . . . . Utility 2 | . . 2 . . Weapon 1 | . . . . 1 Parts Attached 33 | 6 4 6 4 13 Power 4 | 1 . 1 1 1 Engine 4 | 1 . 1 1 1 Core . | . . . . . Reactor . | . . . . . Propulsion 6 | 2 . 2 . 2 Treads 1 | . . . . 1 Leg 4 | 2 . 2 . . Wheel 1 | . . . . 1 Hover . | . . . . . Flight . | . . . . . Utility 9 | 1 3 3 . 2 Device 4 | . 1 2 . 1 Storage 2 | 1 1 . . . Processor 1 | . . 1 . . Hackware . | . . . . . Protection 2 | . 1 . . 1 Artifact . | . . . . . Weapon 14 | 2 1 . 3 8 Energy Gun 4 | 1 . . . 3 Energy Cannon . | . . . . . Ballistic Gun 4 | 1 . . 1 2 Ballistic Cannon 2 | . . . . 2 Launcher 4 | . 1 . 2 1 Special Weapon . | . . . . . Impact Weapon . | . . . . . Slashing Weapon . | . . . . . Piercing Weapon . | . . . . . Special Melee Weapon . | . . . . . Unidentified Prototypes 1 | . . 1 . . Parts Lost 18 | . . . 4 14 Power 2 | . . . . 2 Propulsion 4 | . . . 2 2 Utility 3 | . . . . 3 Weapon 9 | . . . 2 7 Highest Loss Streak 7 | . . . 2 7 To Critical Strikes . | . . . . . Average Slot Usage (%) 92 | . 99 99 96 75 Engine 10 | . 14 11 11 7 Treads 1 | . . . . 7 Leg 16 | . 28 22 18 . Device 8 | . 3 11 11 4 Storage 11 | . 14 11 11 8 Processor 8 | . . 10 11 9 Protection 10 | . 10 11 11 10 Energy Gun 2 | . 5 . . 7 Ballistic Gun 10 | . 14 11 11 6 Ballistic Cannon 1 | . . . . 5 Launcher 8 | . 8 11 10 3 Naked Turns . | . . . . . Heaviest Build 42 | 12 29 36 37 42 Greatest Support 22 | 20 20 20 20 22 Greatest Overweight (x) 13 | . 1 1 10 13 Average Overweight (x) 1 | . . 1 1 3 Largest Inventory Capacity 15 | 8 15 15 15 15 Average Capacity 14 | 7 11 15 15 14 Most Carried 8 | 5 7 8 6 5 Average Carried 4 | 1 4 5 4 3 Final Capacity 15 | 8 15 15 15 5 Final Carried 7 | 1 7 6 4 2 Class Distribution -------------------- 88% | Mutant 9% | Gunner Dominant Class ---------------- Mutant | -10/Materials Mutant | -9/Materials Mutant | -9/Mines Gunner | -8/Materials Resources | -11 -10 -9 -9 -8 ----------- Run | Yrd Mat Mat Min Mat Matter Collected 1029 | 195 104 54 402 274 Remotely 71 | . 46 . . 25 Salvage Created 1111 | . 136 269 365 341 Parts 76 | . 11 14 35 16 Haulers Intercepted 1 | . . 1 . . Recyclers Shooed 1 | . . . . 1 Parts Field Recycled . | . . . . . Retrieved Matter . | . . . . . Parts Self-Destructed . | . . . . . Prevented . | . . . . . Kills | -11 -10 -9 -9 -8 ------- Run | Yrd Mat Mat Min Mat Combat Hostiles Destroyed 37 | . 8 5 16 8 Guns 13 | . 6 2 2 3 Cannons 3 | . . . . 3 AOE 21 | . 2 3 14 2 Classes Destroyed 9 | . 2 5 2 . Worker 2 | . . 1 1 . Builder 1 | . . . 1 . Hauler 1 | . . 1 . . Operator 1 | . . 1 . . Watcher 2 | . . 2 . . Swarmer 18 | . 6 . 11 1 Grunt 14 | . 2 3 3 6 Sentry 3 | . . 2 . 1 Assembled 2 | . . . 2 . Best Kill Streak 5 | . 3 5 5 3 Combat Bots Only 4 | . 3 2 4 3 Max Kills in Single Turn 3 | . 1 2 3 1 Gunslinging . | . . . . . Exploded 3 | . 1 1 3 1 Melee . | . . . . . Uniques/NPCs Destroyed . | . . . . . Combat | -11 -10 -9 -9 -8 -------- Run | Yrd Mat Mat Min Mat Hostile Shots Fired 214 | . 20 10 51 133 Missed 42 | . 4 5 9 24 Damage Taken 2695 | . 138 154 727 1676 Core 814 | . 54 15 187 558 Absorbed by Shields . | . . . . . Redirected to Shielding 43 | . . . 24 19 Core Remaining (%) 75 | 100 78 . 49 . Volleys Fired 82 | . 10 12 28 32 Largest 3 | . 2 2 2 3 Hottest 135 | . 60 50 53 135 Shots Fired 137 | . 20 24 45 48 Gun 84 | . 15 12 28 29 Cannon 16 | . . . . 16 Launcher 37 | . 5 12 17 3 Special . | . . . . . Kinetic 68 | . 10 12 28 18 Thermal 20 | . . . . 20 Explosive 17 | . 5 12 . . Electromagnetic 32 | . 5 . 17 10 Robot Hit Streak 12 | . 4 3 6 12 Robot Miss Streak 7 | . 2 4 3 7 Penetration Max . | . . . . . Secondary Targets 1 | . 1 . . . Max Gunslinging Chain 1 | . 1 . . . Shots Hit Robots 84 | . 11 9 25 39 Core Hits 70 | . 10 16 24 20 Critical Kills . | . . . . . Critical Parts Destroyed . | . . . . . Critical Strikes 1 | . . . . 1 Burn 1 | . . . . 1 Melee Attacks . | . . . . . Impact . | . . . . . Slashing . | . . . . . Piercing . | . . . . . Sneak Attacks . | . . . . . Combat Hostiles . | . . . . . Follow-up Attacks . | . . . . . Damage Inflicted 2274 | . 382 411 731 750 Guns 603 | . 97 39 121 346 Cannons 242 | . . . . 242 Explosions 1429 | . 285 372 610 162 Melee . | . . . . . Ramming . | . . . . . Kinetic 494 | . 76 39 121 258 Thermal 345 | . . . 85 260 Explosive 657 | . 285 372 . . Electromagnetic 778 | . 21 . 525 232 Impact . | . . . . . Slashing . | . . . . . Piercing . | . . . . . Highest Corruption 2 | . . . 2 1 Average Corruption 1 | . . . 1 1 Corruption Purged . | . . . . . Corruption Blocked . | . . . . . Effects 6 | . . . 6 . Message Errors 2 | . . . 2 . Matter Fused 3 | . . . 3 . Data Loss (major) 1 | . . . 1 . Overload Shots . | . . . . . Overflow Damage 73 | . 10 . 37 26 Projectiles . | . . . . . Explosions 73 | . 10 . 37 26 Melee . | . . . . . Knockbacks 9 | . . . . 9 Impact . | . . . . . Kinetic 8 | . . . . 8 Secondary 1 | . . . . 1 Self-Inflicted Damage 501 | . . 82 309 110 Shots 23 | . . 3 17 3 Rammed . | . . . . . Targets Rammed . | . . . . . Kicked . | . . . . . Crushed . | . . . . . Highest Temperature 589 | . 8 . . 589 Average Temperature 289 | . 4 . . 309 Received Heat Transfer 696 | . 30 27 72 567 Effects 21 | . . . . 21 Energy Bleed 5 | . . . . 5 Interference 5 | . . . . 5 Matter Decay 4 | . . . . 4 Short Circuit 1 | . . . . 1 Damage (minor) 3 | . . . . 3 Damage (core) 3 | . . . . 3 Siege Activations . | . . . . . Robots Corrupted . | . . . . . Combat Hostiles . | . . . . . Parts Fried . | . . . . . Impact Corruptions . | . . . . . Robots Melted . | . . . . . Combat Hostiles . | . . . . . Parts Melted . | . . . . . Heat Transferred 829 | . . . 200 629 Parts Sabotaged . | . . . . . Parts Stolen . | . . . . . Parts Stripped . | . . . . . Power Chain Reactions 4 | . . . 4 . Alert | -11 -10 -9 -9 -8 ------- Run | Yrd Mat Mat Min Mat Peak Influence 428 | . 230 428 381 341 Initial 166 | . . 96 166 78 Average 203 | . 129 239 239 174 Maximum Alert Level 2 | . 1 2 1 1 Low Security (%) 51 | 100 73 43 33 73 Level 1 46 | . 26 40 66 26 Level 2 2 | . . 15 . . Level 3 . | . . . . . Level 4 . | . . . . . Level 5 . | . . . . . High Security . | . . . . . Max Security . | . . . . . Squads Dispatched 2 | . . . 1 1 Investigation 1 | . . . . 1 Extermination . | . . . . . Reinforcement 1 | . . . 1 . Assault . | . . . . . Garrison . | . . . . . Intercept . | . . . . . Searches Triggered . | . . . . . Construction Impeded 1 | . . . 1 . Haulers Reinforced . | . . . . . Active Scanning Responses . | . . . . . Cargo Convoy Interrupts . | . . . . . Stealth | -11 -10 -9 -9 -8 --------- Run | Yrd Mat Mat Min Mat Distress Signals 3 | . . . . 3 Communications Jammed . | . . . . . Distress Signals . | . . . . . Times Spotted 53 | . 9 8 15 21 Peak Tracking Total 8 | . 3 2 4 8 Tactical Retreats 3 | . . . . 3 Traps | -11 -10 -9 -9 -8 ------- Run | Yrd Mat Mat Min Mat Traps Triggered . | . . . . . Indirectly . | . . . . . Trap Hack Attempts . | . . . . . Triggered . | . . . . . Disarmed . | . . . . . Reprogrammed . | . . . . . Reused . | . . . . . Traps Extracted . | . . . . . Installed . | . . . . . Triggered . | . . . . . Machines | -11 -10 -9 -9 -8 ---------- Run | Yrd Mat Mat Min Mat Machines Disabled 9 | . 1 2 5 1 Max in Single Turn 4 | . 1 1 4 1 Machines Repaired . | . . . . . Machines Dismantled . | . . . . . Machines Sabotaged . | . . . . . Overloaded Fab Kills . | . . . . . Hacking | -11 -10 -9 -9 -8 --------- Run | Yrd Mat Mat Min Mat Machines Accessed 5 | . 2 2 . 1 Terminals 5 | . 2 2 . 1 Fabricators . | . . . . . Repair Stations . | . . . . . Recycling Units . | . . . . . Scanalyzers . | . . . . . Garrison Access . | . . . . . Total Hacks 17 | . 4 4 . 9 Successful 8 | . 2 2 . 4 Failed 8 | . 2 2 . 4 Catastrophic . | . . . . . Database Lockouts 1 | . . . . 1 Manual . | . . . . . Terminals 17 | . 4 4 . 9 Fabricators . | . . . . . Repair Stations . | . . . . . Recycling Units . | . . . . . Scanalyzers . | . . . . . Garrison Access . | . . . . . Terminal Hacks 8 | . 2 2 . 4 Record 4 | . . . . 4 Branch Access Points 1 | . 1 . . . Alert Level 1 | . . 1 . . Locate Traps 1 | . 1 . . . Zone Layout 1 | . . 1 . . Fabricator Hacks . | . . . . . Repair Station Hacks . | . . . . . Recycling Unit Hacks . | . . . . . Scanalyzer . | . . . . . Garrison Access Hacks . | . . . . . Unauthorized Hacks . | . . . . . Terminals . | . . . . . Fabricators . | . . . . . Repair Stations . | . . . . . Recycling Units . | . . . . . Scanalyzers . | . . . . . Garrison Access . | . . . . . Data Cores Recovered 1 | . . 1 . . Used . | . . . . . Hacking Detections 4 | . 2 1 . 1 Full Trace Events 1 | . . . . 1 Feedback Events . | . . . . . Feedback Blocked . | . . . . . Robot Schematics Acquired . | . . . . . Robots Built . | . . . . . Authchips . | . . . . . Time . | . . . . . Total Robot Build Rating . | . . . . . Part Schematics Acquired . | . . . . . Parts Built . | . . . . . Authchips . | . . . . . Time . | . . . . . Total Part Build Rating . | . . . . . Parts Repaired . | . . . . . Time . | . . . . . Parts Recycled . | . . . . . Recycled Matter . | . . . . . Retrieved Matter . | . . . . . Retrieved Components . | . . . . . Parts Scanalyzed . | . . . . . Part Schematics Acquired . | . . . . . Parts Damaged . | . . . . . Bothacking | -11 -10 -9 -9 -8 ------------ Run | Yrd Mat Mat Min Mat Used RIF Installer . | . . . . . Robots Hacked . | . . . . . Non-combat . | . . . . . Combat . | . . . . . Robot Hacks Applied . | . . . . . Relay Couplers Released . | . . . . . Fabnet Peak Effective % . | . . . . . Robots Rewired . | . . . . . Allies Hacked . | . . . . . Hacks Repelled . | . . . . . Allies | -11 -10 -9 -9 -8 -------- Run | Yrd Mat Mat Min Mat Total Allies . | . . . . . Largest Group . | . . . . . Highest-Rated Group . | . . . . . Highest-Rated Ally . | . . . . . Total Orders . | . . . . . Ally Attacks . | . . . . . Total Damage . | . . . . . Kills . | . . . . . Allies Corrupted . | . . . . . Allies Melted . | . . . . . Intel | -11 -10 -9 -9 -8 ------- Run | Yrd Mat Mat Min Mat Robot Analysis Total . | . . . . . Derelict Logs Recovered . | . . . . . Drone Launches . | . . . . . Drone Recoveries . | . . . . . Exploration | -11 -10 -9 -9 -8 ------------- Run | Yrd Mat Mat Min Mat Turns Passed 2316 | 51 367 383 1024 491 Spaces Moved 1011 | 37 220 169 407 178 Core 57 | 8 . . 14 35 Treads 6 | . . . . 6 Legs 811 | 29 220 169 393 . Wheels 137 | . . . . 137 Hover . | . . . . . Flight . | . . . . . Fastest Speed 50 | 50 120 190 190 115 Average Speed 192 | 104 147 190 216 215 Slowest Speed 700 | 120 190 190 550 700 Overloaded Moves . | . . . . . Propulsion Burnouts . | . . . . . Robots Hopped . | . . . . . Cave-ins Triggered . | . . . . . Exploration Rate (%) 30 | 3 43 20 71 14 Regions Visited 4 Branch Regions 1 Pre-discovered Areas . | . . . . . Known Exits Taken . | . . . . . Unknown Exits Taken 4 | 1 1 1 1 . Scrap Searched 1 | . . . 1 . Spaces Dug . | . . . . . Terrain Destroyed 153 | . 26 80 26 21 Melee . | . . . . . Projectile . | . . . . . AOE 153 | . 26 80 26 21 Terrain Rammed . | . . . . . Walls Destroyed . | . . . . . Machines Disabled . | . . . . . Actions | -11 -10 -9 -9 -8 --------- Run | Yrd Mat Mat Min Mat Total 1253 | 49 242 207 514 241 Wait 97 | . . 14 72 11 Move 1007 | 36 219 168 406 178 Hop . | . . . . . Pick Up 28 | 7 8 4 2 7 Fast Attach . | . . . . . Attach 20 | 6 1 2 2 9 Detach . | . . . . . Swap 13 | . 3 4 2 4 Drop 6 | . 1 3 2 . Fire 82 | . 10 12 28 32 Melee . | . . . . . Ram . | . . . . . Kick . | . . . . . Crush . | . . . . . Escape Stasis . | . . . . . Rewire . | . . . . . Trap . | . . . . . Miscellaneous . | . . . . . Route ------- -11/Scrapyard -10/Materials (discovered 2 exits: *Mat / Min) -9/Materials (discovered 2 exits: [*Min] / [*Sto]) -9/Mines -8/Materials History --------- Turn | Location | Event 14 | -11/Scrapyard | Discovered new exit (range 16) 52 | -11/Scrapyard | Entered Materials 305 | -10/Materials | Build established: Mutant 376 | -10/Materials | Identified exit to Mines 399 | -10/Materials | Discovered new exit (range 9) 419 | -10/Materials | Entered another Materials area 419 | -9/Materials | Evolved 2 slots: Utility x2 736 | -9/Materials | Discovered new exit (range 10) 755 | -9/Materials | Discovered new exit (range 16) 802 | -9/Materials | Entered Mines 1404 | -9/Mines | Assembled infested the area 1409 | -9/Mines | Assisted by a Guerilla fighting off Assembled 1643 | -9/Mines | Discovered new exit (range 5) 1753 | -9/Mines | Core integrity fell below 50% 1826 | -9/Mines | Entered Materials 1826 | -8/Materials | Evolved 2 slots: Power x1, Weapon x1 2039 | -8/Materials | Central database locked down 2130 | -8/Materials | Core integrity fell below 50% 2150 | -8/Materials | Lost 3 parts (1p1n1w) 2311 | -8/Materials | Core integrity fell below 20% 2317 | -8/Materials | Destroyed by S-10 Pest with Light Assault Rifle Last Messages --------------- W-25 Informer sends out distress signal. M-13 Machinist repairs W-25 Informer. Imp. Light Cannon destroyed. Hvy. Laser destroyed. Acquired 4 matter. Acquired 6 matter. Adv. Treads destroyed. Utility Shielding destroyed. Acquired 5 matter. M-13 Machinist repairs Imp. Hover Unit. Acquired 9 matter. Acquired 1 matter. Lgt. Assault Rifle destroyed. Door malfunctions. S-10 Pest destroyed. EMP Blaster destroyed. Destroyed EMP Blaster. Lrg. Storage Unit destroyed. S-10 Pest misfires. S-10 Pest destroyed. Map ----- +----------------------------------------------------+ | ??????????# + #??????????????????????? | | ??????????#### ###+#####################?????? | | ?????????????# # #?????? | | ?????????????# # """" #?????? | | ?????????????# # """" #?????? | | ?????????????# ############## + """" #?????? | | ??????######### ##########????# # #?????? | | ??????# # # #????# # #?????? | | ??????#""""" # # "T" #????# ########?????? | | ??????#""""" + + #????# #????????? | | ???????""""" # # """ #????# #????????? | | ??????#""""" # # """"" #????# #????????? | | ??????#""""" # # """"" #????#########????????? | | ??????#""""" # # """"" #?????????????????????? | | ??????#""""" # # """ #?????????????????????? | | ??????# # # #?????????????????????? | | ??????# # #######+###########????????????? | | ??????# | # #???### ## #????????????? | | ??????######### #???# # #????????????? | | ??????????????# #???# # #????????????? | | ??????????????# #???# + #????????????? | | ??????????????# #???# # """ #????????????? | | ??????????????# %###### ## """"" #????????????? | | ??????????????# # # %## """"" #????????????? | | ??????????????# + s/ %## """"" #????????????? | | ??????????????# # #*@## """ #????????????? | | ??????????????# # #ss###########????????????? | | ??????????????### # #[%= ?????????????????????? | | ???????????????? # #sw ????????????????????? | | ???????????????? # # r###+???????????????????? | | ???????????????? ###### #??????????????????????? | | ???????????????? #????# #??????????????????????? | | ???????????????? #???? s ??????????????????????? | | ???????????????? ????? ??????????????????????? | | ???????????????## ?????[ T ??????????????????????? | | ????????????????? ????? ??????????????????????? | | ?????????????????+????## #??????????????????????? | | ????????????????? ?????# ???????????????????????? | | ?????????????????T?????? ???????????????????????? | | ???????????????????????? ????????????????????????? | | ????????????????????????m????????????????????????? | | ?????????????????????????????????????????????????? | | ?????????????????????????????????????????????????? | | ?????????????????????????????????????????????????? | | ?????????????????????????????????????????????????? | | ?????????????????????????????????????????????????? | | ?????????????????????????????????????????????????? | | ?????????????????????????????????????????????????? | | ?????????????????????????????????????????????????? | | ?????????????????????????????????????????????????? | +----------------------------------------------------+ Best States ------------- Heat Dissipation 53 Energy Generation 15 Energy Capacity 280 Matter Stores 300 Matter Capacity 300 Sight Range 16 Terrain Scan Density 10 Armor Coverage 225 Utility Shielding 33 Evasion (%) 55 Targeting Accuracy 5 Recoil Reduction 1 Item Schematics ----------------- None Robot Schematics ------------------ None Fabricated ------------ Nothing Alien Tech Used ----------------- None Achievements -------------- I Survived The Infestation Challenges ------------ None Game ------ Seed QuantumCryofiberShredder Manual? 0 Play Time 00:18:13 Cumulative 2.5 hours Start 2024.03.21 @ 20:59:36 End 2024.03.21 @ 21:17:43 Sessions 1 Manual Loads 0 Difficulty Rogue Special Mode None Game No. 10 Rogue 10 Adventurer 0 Explorer 0 Win Type - Total 0 Types 0/0/0/0/0/0/0/0/0 Lore% 2 Gallery% 7 Achievement% 6 Wizard Run 0 Options --------- Layout 1 ASCII 1 Keyboard 0 Movement Mouse Keybinds 0 Fullscreen 2 Font 20/SmallcapsGlow Map View 25x17 Zoom Use 99% Tactical HUD 0 Map Filters NONE Filters NONE Steam 1 RUN: d9dd6bb5-8c8b-49a3-9e5f-b7e9f6286396